bitfinex/quotes_SOLUSD_20251118
["timestamp","ask_amount","ask_price","bid_price","bid_amount"]
[1763462175399,5.01,138.77,138.73,3.76107438]
[1763462175804,5.01,138.77,138.74,3.08107438]
[1763462176311,4.3,138.77,138.7,18.12096]
[1763462176617,4.3,138.77,138.73,3.08107438]
[1763462176618,7.38107438,138.77,138.73,3.08107438]
[1763462177000,8.09107438,138.77,138.73,3.76107438]
[1763462177189,5.01,138.77,138.74,0.68]
[1763462177388,8.09107438,138.77,138.74,0.68]
[1763462177695,21.20203438,138.75,138.7,0.68]
[1763462177895,7.38107438,138.74,138.7,0.68]
[1763462178113,8.09107438,138.74,138.7,0.68]
[1763462178419,8.09107438,138.74,138.7,3.76107438]
[1763462178615,3.79107438,138.73,138.69,3.08107438]
[1763462178818,0.71,138.72,138.68,3.76107438]
[1763462178998,9.78882769,138.7,138.67,0.2]
[1763462179313,3.08107438,138.69,138.67,0.2]
[1763462179515,4.3,138.68,138.67,0.2]
[1763462179710,4.97,138.68,138.67,0.2]
[1763462180489,4.3,138.68,138.67,0.2]
[1763462180712,17.83990207,138.68,138.67,0.2]
[1763462181095,4.3,138.68,138.67,0.2]
[1763462181311,32.87978769,138.68,138.67,0.2]
[1763462181697,0.67,138.71,138.67,0.2]
[1763462181894,2.0,138.71,138.69,3.08107438]
[1763462183010,4.3,138.73,138.7,3.76107438]
[1763462183600,4.3,138.73,138.71,3.76107438]
[1763462184008,4.3,138.73,138.72,3.08107438]
[1763462184319,4.3,138.73,138.71,3.08107438]
[1763462184813,4.3,138.73,138.71,7.34324368]
[1763462185501,35.92303137,138.72,138.67,0.2]
[1763462185825,7.34324368,138.71,138.67,0.2]
[1763462185996,4.3,138.7,138.67,0.2]
[1763462186323,4.3,138.7,138.68,7.34324368]
[1763462186532,4.3,138.7,138.69,7.34324368]
[1763462188494,23.09096,138.72,138.69,7.34324368]
[1763462189400,4.3,138.72,138.7,7.34324368]
[1763462189602,4.3,138.72,138.7,8.02324368]
[1763462190494,11.64324368,138.72,138.67,8.22324368]
[1763462190698,0.67,138.71,138.67,8.22324368]
[1763462190913,4.3,138.7,138.67,8.22324368]
[1763462191299,4.3,138.7,138.68,0.68]
[1763462191501,4.3,138.7,138.67,8.22324368]
[1763462191721,4.3,138.7,138.68,0.68]
[1763462192520,4.3,138.7,138.69,7.34324368]
[1763462192710,4.3,138.72,138.69,7.34324368]
[1763462192911,4.3,138.72,138.69,8.02324368]
[1763462194007,4.97,138.72,138.69,8.02324368]
[1763462194602,10.45882769,138.71,138.67,0.2]
[1763462194930,17.80207137,138.71,138.67,0.2]
[1763462195236,0.67,138.7,138.67,0.2]
[1763462195406,4.3,138.69,138.67,0.2]
[1763462195932,4.97,138.69,138.67,0.2]
[1763462196918,17.80207137,138.68,138.67,0.2]
[1763462197107,35.92303137,138.68,138.67,0.2]
[1763462197320,40.22303137,138.68,138.59,8.02324368]
[1763462197623,17.13207137,138.64,138.59,0.68]
[1763462197826,4.3,138.63,138.59,0.68]
[1763462198019,4.97,138.63,138.59,0.68]
[1763462198219,12.31324368,138.63,138.59,0.68]
[1763462199117,4.97,138.63,138.59,8.02324368]
[1763462200224,4.97,138.63,138.59,0.68]
[1763462200729,12.31324368,138.63,138.59,0.68]
[1763462200938,4.97,138.63,138.59,0.68]
[1763462201307,12.31324368,138.63,138.59,0.68]
[1763462201912,7.34324368,138.6,138.57,0.2]
[1763462202416,0.71,138.59,138.57,0.2]
[1763462202619,5.01,138.59,138.57,0.2]
[1763462202840,7.34324368,138.58,138.57,0.2]
[1763462203046,17.84207137,138.58,138.57,0.2]
[1763462203337,11.64324368,138.59,138.57,0.2]
[1763462203631,4.3,138.59,138.57,0.92]
[1763462203945,4.3,138.59,138.57,0.2]
[1763462204535,5.01,138.59,138.57,0.2]
[1763462205610,4.3,138.59,138.57,0.2]
[1763462205831,4.3,138.59,138.58,0.72]
[1763462206332,4.3,138.59,138.58,7.34324368]
[1763462207655,4.3,138.59,138.58,0.72]
[1763462208016,4.3,138.61,138.58,0.72]
[1763462208541,4.3,138.61,138.57,7.54324368]
[1763462208542,5.01,138.61,138.57,7.54324368]
[1763462208835,12.35324368,138.61,138.57,0.92]
[1763462209539,11.64324368,138.61,138.57,0.92]
[1763462209835,12.35324368,138.61,138.57,0.92]
[1763462211828,5.01,138.61,138.57,8.26324368]
[1763462212422,12.35324368,138.61,138.57,8.26324368]
[1763462213347,5.01,138.61,138.57,8.26324368]
[1763462214831,5.01,138.61,138.57,13.73109756]
[1763462215532,17.82109756,138.61,138.57,13.73109756]
[1763462217829,5.01,138.61,138.57,13.73109756]
[1763462218356,0.71,138.6,138.57,13.73109756]
[1763462220049,4.3,138.61,138.59,12.81109756]
[1763462220269,9.78882769,138.65,138.6,12.81109756]
[1763462220555,13.52109756,138.66,138.58,0.72]
[1763462220556,4.3,138.66,138.63,12.81109756]
[1763462220856,0.71,138.68,138.64,13.53109756]
[1763462221057,4.3,138.68,138.65,12.81109756]
[1763462221358,12.81109756,138.72,138.67,12.81109756]
[1763462221537,5.01,138.71,138.67,12.81109756]
[1763462221745,5.01,138.71,138.67,13.53109756]
[1763462222045,5.01,138.71,138.68,0.72]
[1763462222262,4.3,138.71,138.68,13.53109756]
[1763462222434,0.71,138.73,138.69,13.53109756]
[1763462222636,5.01,138.73,138.69,13.53109756]
[1763462222846,5.01,138.73,138.7,0.72]
[1763462223235,5.01,138.73,138.65,4.3]
[1763462223456,5.01,138.73,138.68,12.81109756]
[1763462223958,5.01,138.73,138.69,0.72]
[1763462224254,0.71,138.72,138.68,12.81109756]
[1763462224465,0.71,138.72,138.69,0.72]
[1763462224632,4.3,138.73,138.69,13.53109756]
[1763462224834,0.71,138.8,138.72,12.81109756]
[1763462225047,5.01,138.79,138.76,12.81109756]
[1763462225347,0.38,138.79,138.76,12.81109756]
[1763462225559,0.38,138.79,138.76,13.53109756]
[1763462226069,0.38,138.79,138.76,0.72]
[1763462226350,5.01,138.81,138.77,13.53109756]
[1763462226557,4.3,138.81,138.78,12.81109756]
[1763462227461,5.01,138.81,138.77,13.53109756]
[1763462228859,5.01,138.81,138.78,12.81109756]
[1763462229061,4.3,138.81,138.77,0.72]
[1763462229232,4.3,138.81,138.73,4.3]
[1763462229233,12.81109756,138.79,138.73,4.3]
[1763462229560,13.52109756,138.8,138.76,12.81109756]
[1763462229986,0.71,138.79,138.76,12.81109756]
[1763462232036,0.68,138.8,138.76,12.81109756]
[1763462232236,0.68,138.79,138.76,13.47109756]
[1763462232664,0.68,138.79,138.76,12.81109756]
[1763462232965,0.68,138.79,138.75,12.81109756]
[1763462233278,0.68,138.79,138.72,18.12096]
[1763462233279,26.89992525,138.78,138.73,12.81109756]
[1763462233635,0.68,138.77,138.73,13.47109756]
[1763462234367,4.3,138.78,138.74,13.47109756]
[1763462234546,4.98,138.78,138.75,12.81109756]
[1763462234858,4.3,138.78,138.75,13.47109756]
[1763462235063,4.3,138.78,138.76,12.81109756]
[1763462235238,4.3,138.78,138.75,13.47109756]
[1763462235439,4.3,138.78,138.75,0.66]
[1763462235640,4.98,138.78,138.75,13.47109756]
[1763462236066,4.98,138.78,138.75,12.81109756]
[1763462236845,4.3,138.78,138.75,12.81109756]
[1763462237139,0.68,138.77,138.73,12.81109756]
[1763462237360,4.3,138.76,138.73,12.81109756]
[1763462237761,4.3,138.76,138.72,12.81109756]
[1763462237762,0.68,138.75,138.72,12.81109756]
[1763462238758,0.68,138.75,138.72,13.47109756]
[1763462239870,0.68,138.75,138.72,12.81109756]
[1763462240440,0.68,138.75,138.71,12.81109756]
[1763462241184,17.83109756,138.76,138.72,0.7]
[1763462241351,0.72,138.75,138.71,13.51109756]
[1763462242382,17.11109756,138.76,138.72,12.81109756]
[1763462242557,17.83109756,138.76,138.72,13.51109756]
[1763462242765,5.02,138.76,138.72,13.51109756]
[1763462242980,0.72,138.75,138.72,13.51109756]
[1763462243656,0.72,138.75,138.72,12.81109756]
[1763462244179,0.72,138.75,138.72,13.51109756]
[1763462244678,0.72,138.75,138.7,0.7]
[1763462244854,0.72,138.75,138.71,12.81109756]
[1763462245345,0.72,138.75,138.71,13.51109756]
[1763462247558,17.11109756,138.76,138.72,13.51109756]
[1763462247559,5.02,138.76,138.72,13.51109756]
[1763462247875,0.72,138.75,138.72,13.51109756]
[1763462250750,4.3,138.76,138.72,13.51109756]
[1763462250978,4.3,138.76,138.73,13.51109756]
[1763462251451,4.3,138.76,138.71,4.3]
[1763462251654,14.08882769,138.78,138.74,13.51109756]
[1763462251854,14.08882769,138.78,138.75,12.81109756]
[1763462252073,5.02,138.78,138.75,12.81109756]
[1763462252265,5.02,138.78,138.75,13.51109756]
[1763462252597,9.78882769,138.75,138.68,13.51109756]
[1763462252773,12.81109756,138.73,138.68,13.51109756]
[1763462253089,9.78882769,138.72,138.68,13.51109756]
[1763462253388,17.11109756,138.71,138.66,12.81109756]
[1763462253588,17.83109756,138.71,138.66,12.81109756]
[1763462253797,0.72,138.7,138.66,13.51109756]
[1763462254290,0.72,138.7,138.67,0.7]
[1763462254471,17.83109756,138.71,138.67,0.7]
[1763462255019,5.02,138.71,138.67,13.51109756]
[1763462255668,0.72,138.7,138.66,12.81109756]
[1763462256067,0.72,138.7,138.67,12.81109756]
[1763462256878,0.72,138.7,138.67,13.51109756]
[1763462257084,0.72,138.7,138.67,12.81109756]
[1763462257283,5.02,138.71,138.67,12.81109756]
[1763462257495,0.72,138.7,138.67,12.81109756]
[1763462257695,0.72,138.7,138.65,5.0]
[1763462257994,0.72,138.7,138.67,12.81109756]
[1763462260688,0.72,138.7,138.66,13.51109756]
[1763462260887,0.72,138.7,138.66,5.52223967]
[1763462261897,5.54223967,138.7,138.64,23.12096]
[1763462262199,4.3,138.7,138.65,0.72]
[1763462262408,9.12223967,138.7,138.65,5.54223967]
[1763462262789,9.12223967,138.7,138.66,0.72]
[1763462263979,9.12223967,138.7,138.66,5.54223967]
[1763462264314,4.96,138.7,138.66,5.54223967]
[1763462265701,9.78223967,138.7,138.66,5.54223967]
[1763462267396,9.78223967,138.7,138.66,0.72]
[1763462267605,4.96,138.7,138.66,5.54223967]
[1763462267903,9.78223967,138.7,138.66,5.54223967]
[1763462269711,9.78223967,138.7,138.67,5.54223967]
[1763462269712,4.3,138.7,138.67,5.54223967]
[1763462270086,4.3,138.7,138.67,0.72]
[1763462271282,4.3,138.7,138.67,5.54223967]
[1763462271608,18.91106736,138.72,138.67,5.54223967]
[1763462271778,19.57106736,138.72,138.67,4.82223967]
[1763462271983,19.57106736,138.72,138.67,5.54223967]
[1763462272816,18.91106736,138.72,138.68,5.54223967]
[1763462273318,19.57106736,138.72,138.68,5.54223967]
[1763462275185,0.66,138.71,138.68,5.54223967]
[1763462275892,18.91106736,138.72,138.68,4.82223967]
[1763462276098,14.61106736,138.75,138.71,4.82223967]
[1763462276307,4.96,138.8,138.74,4.82223967]
[1763462276606,4.3,138.79,138.75,4.82223967]
[1763462276795,4.96,138.79,138.75,3.08227498]
[1763462276997,8.04227498,138.79,138.75,3.80227498]
[1763462277705,0.1,138.83,138.78,3.08227498]
[1763462278016,0.1,138.83,138.82,3.08227498]
[1763462278915,0.1,138.83,138.81,0.72]
[1763462279110,0.1,138.83,138.82,3.08227498]
[1763462280112,0.1,138.83,138.82,3.80227498]
[1763462282401,0.1,138.83,138.82,8.10227498]
[1763462282799,0.1,138.88,138.87,7.32528642]
[1763462283315,0.1,138.88,138.87,8.04528642]
[1763462283699,0.1,138.88,138.87,7.32528642]
[1763462283900,0.1,138.88,138.87,8.04528642]
[1763462284605,0.1,138.88,138.87,7.32528642]
[1763462285104,0.1,138.88,138.87,8.04528642]
[1763462285502,0.76,138.88,138.84,7.32528642]
[1763462286093,0.1,138.88,138.85,8.04528642]
[1763462286797,0.1,138.88,138.83,4.3]
[1763462286798,0.1,138.88,138.86,8.04528642]
[1763462287009,0.1,138.88,138.87,7.32528642]
[1763462287723,0.1,138.88,138.86,7.32528642]
[1763462289617,0.76,138.88,138.85,7.32528642]
[1763462290403,0.76,138.88,138.85,8.04528642]
[1763462290734,0.1,138.88,138.85,8.04528642]
[1763462291721,0.1,138.88,138.7,7.96350748]
[1763462291722,0.76,138.88,138.82,0.72]
[1763462291909,0.76,138.88,138.8,8.04528642]
[1763462291910,7.32528642,138.85,138.8,8.04528642]
[1763462292321,0.67,138.85,138.81,8.03528642]
[1763462292535,14.08882769,138.87,138.83,7.32528642]
[1763462293031,14.75882769,138.87,138.83,8.03528642]
[1763462293235,4.3,138.87,138.85,7.32528642]
[1763462293411,0.1,138.88,138.85,7.32528642]
[1763462293722,0.1,138.88,138.85,8.03528642]
[1763462300832,0.1,138.88,138.8,29.74624642]
[1763462300833,0.1,138.88,138.86,7.99528642]
[1763462301132,0.1,138.88,138.86,7.32528642]
[1763462301437,0.1,138.88,138.85,7.99528642]
[1763462301642,0.1,138.88,138.85,0.67]
[1763462301948,0.1,138.88,138.85,7.99528642]
[1763462302311,0.1,138.88,138.86,7.32528642]
[1763462303930,39.51507411,138.87,138.8,0.67]
[1763462304134,7.32528642,138.85,138.8,7.99528642]
[1763462304612,0.71,138.84,138.8,7.99528642]
[1763462304814,0.71,138.84,138.8,3.75017387]
[1763462305623,3.79017387,138.84,138.79,3.75017387]
[1763462306032,3.08017387,138.85,138.8,3.75017387]
[1763462306218,0.71,138.83,138.8,0.67]
[1763462307322,7.38017387,138.84,138.8,0.67]
[1763462307512,0.71,138.83,138.8,0.67]
[1763462307933,0.71,138.83,138.79,3.08017387]
[1763462307934,3.79017387,138.83,138.78,3.75017387]
[1763462308336,0.71,138.82,138.78,3.75017387]
[1763462309929,0.71,138.82,138.78,0.67]
[1763462310130,3.79017387,138.82,138.78,0.67]
[1763462310328,0.71,138.81,138.78,0.67]
[1763462310630,32.20978769,138.84,138.78,0.67]
[1763462310836,3.79017387,138.82,138.78,0.67]
[1763462311042,3.79017387,138.82,138.76,3.08017387]
[1763462311248,0.71,138.81,138.77,0.67]
[1763462311622,3.08017387,138.8,138.75,0.67]
[1763462311956,3.08017387,138.8,138.75,3.75017387]
[1763462312120,3.79017387,138.8,138.76,0.67]
[1763462312314,0.71,138.79,138.75,3.75017387]
[1763462313240,0.71,138.79,138.76,0.67]
[1763462313741,0.71,138.79,138.74,3.08017387]
[1763462314042,3.79017387,138.79,138.74,3.08017387]
[1763462314212,3.79017387,138.79,138.74,3.75017387]
[1763462314412,0.71,138.78,138.74,3.75017387]
[1763462314726,0.71,138.78,138.74,3.08017387]
[1763462314913,0.71,138.78,138.73,3.75017387]
[1763462314914,3.79017387,138.78,138.73,3.75017387]
[1763462315116,3.08017387,138.77,138.72,3.75017387]
[1763462315315,3.08017387,138.76,138.71,3.75017387]
[1763462315516,3.79017387,138.76,138.71,3.75017387]
[1763462315738,3.79017387,138.76,138.72,0.67]
[1763462316357,3.08017387,138.76,138.72,0.67]
[1763462316749,18.12096,138.77,138.73,3.08017387]
[1763462317258,18.12096,138.77,138.74,0.67]
[1763462317446,18.83096,138.77,138.74,0.67]
[1763462317845,18.83096,138.77,138.73,3.08017387]
[1763462318057,18.83096,138.77,138.73,3.75017387]
[1763462318469,18.12096,138.77,138.74,0.67]
[1763462318681,18.83096,138.77,138.74,0.67]
[1763462319543,18.12096,138.77,138.74,0.67]
[1763462320945,18.83096,138.77,138.74,0.67]
[1763462321148,18.12096,138.77,138.74,3.75017387]
[1763462321541,18.12096,138.77,138.75,0.67]
[1763462321741,74.12675082,138.8,138.76,3.08017387]
[1763462321742,77.20692469,138.8,138.76,3.08017387]
[1763462322046,0.7,138.83,138.77,3.08017387]
[1763462322256,0.7,138.83,138.75,4.97]
[1763462322257,3.08017387,138.82,138.78,3.08017387]
[1763462322456,3.78017387,138.82,138.79,0.7]
[1763462322656,3.78017387,138.82,138.78,3.08017387]
[1763462322852,3.78017387,138.82,138.78,0.7]
[1763462324472,0.7,138.81,138.78,0.7]
[1763462326046,3.78017387,138.81,138.77,3.08017387]
[1763462326249,3.78017387,138.81,138.77,3.78017387]
[1763462327769,0.7,138.8,138.77,0.7]
[1763462328149,0.7,138.8,138.77,3.78017387]
[1763462328346,3.78017387,138.82,138.77,0.7]
[1763462328548,3.78017387,138.82,138.77,3.78017387]
[1763462328750,0.7,138.81,138.78,0.7]
[1763462329277,3.08017387,138.82,138.78,0.7]
[1763462329454,0.7,138.82,138.78,3.78017387]
[1763462329981,0.7,138.82,138.79,0.7]
[1763462330280,100.32788469,138.83,138.79,0.7]
[1763462331150,0.7,138.82,138.78,3.08017387]
[1763462331353,0.7,138.82,138.79,0.7]
[1763462332068,3.78017387,138.82,138.79,0.7]
[1763462332968,0.7,138.82,138.79,0.7]
[1763462334761,0.7,138.82,138.79,3.78017387]
[1763462335267,96.54771082,138.83,138.79,3.78017387]
[1763462335268,96.54771082,138.83,138.79,3.08017387]
[1763462335565,97.24771082,138.83,138.79,3.78017387]
[1763462335882,0.7,138.82,138.79,3.78017387]
[1763462336789,0.7,138.82,138.79,5.51375192]
[1763462339767,0.7,138.82,138.79,0.7]
[1763462339970,0.7,138.82,138.79,5.51375192]
[1763462342164,0.7,138.82,138.79,0.7]
[1763462342690,101.36146274,138.83,138.79,5.51375192]
[1763462342691,97.24771082,138.83,138.79,5.51375192]
[1763462342883,0.7,138.82,138.79,5.51375192]
[1763462343789,96.54771082,138.83,138.8,0.7]
[1763462344095,96.54771082,138.83,138.8,5.51375192]
[1763462344303,97.24771082,138.83,138.8,5.51375192]
[1763462345491,97.24771082,138.83,138.8,4.81375192]
[1763462346004,97.24771082,138.83,138.8,5.51375192]
[1763462346385,15.30257961,138.82,138.77,4.81375192]
[1763462346584,9.11375192,138.81,138.77,4.81375192]
[1763462346893,9.11375192,138.81,138.74,5.51375192]
[1763462346894,22.93471192,138.79,138.74,5.51375192]
[1763462347095,5.0,138.81,138.78,4.81375192]
[1763462347096,22.42096,138.81,138.78,4.81375192]
[1763462347301,22.42096,138.81,138.79,4.81375192]
[1763462347682,22.42096,138.81,138.78,5.51375192]
[1763462348185,22.42096,138.81,138.79,4.81375192]
[1763462348404,23.12096,138.81,138.79,4.81375192]
[1763462348782,22.42096,138.81,138.79,5.51375192]
[1763462350307,4.3,138.81,138.79,5.51375192]
[1763462350603,4.3,138.81,138.8,5.51375192]
[1763462350905,4.3,138.81,138.8,4.81375192]
[1763462351287,4.3,138.81,138.79,5.51375192]
[1763462351708,4.3,138.81,138.79,4.81375192]
[1763462351906,4.3,138.81,138.79,5.51375192]
[1763462352209,4.3,138.81,138.79,4.81375192]
[1763462352705,4.3,138.81,138.78,0.72]
[1763462352911,4.3,138.81,138.79,4.81375192]
[1763462353315,4.3,138.81,138.79,5.53375192]
[1763462354510,4.98,138.81,138.79,4.81375192]
[1763462354708,28.58978769,138.8,138.74,6.00871861]
[1763462354908,18.90257961,138.79,138.74,4.81375192]
[1763462355214,19.58257961,138.79,138.74,4.81375192]
[1763462355397,0.68,138.78,138.74,5.53375192]
[1763462355714,4.3,138.77,138.74,4.81375192]
[1763462356006,4.98,138.77,138.74,4.81375192]
[1763462356215,4.98,138.77,138.74,5.53375192]
[1763462356386,4.98,138.77,138.74,0.72]
[1763462356909,22.42096,138.77,138.74,5.53375192]
[1763462357127,4.3,138.77,138.76,4.81375192]
[1763462357710,4.3,138.77,138.75,4.81375192]
[1763462357890,4.3,138.77,138.75,5.53375192]
[1763462359082,4.3,138.77,138.76,5.53375192]
[1763462359305,4.3,138.77,138.76,4.81375192]
[1763462360306,4.3,138.77,138.75,5.48375192]
[1763462361212,0.71,138.76,138.73,4.81375192]
[1763462361400,0.71,138.76,138.73,5.48375192]
[1763462361584,5.01,138.77,138.73,5.48375192]
[1763462362099,5.01,138.77,138.74,4.81375192]
[1763462362302,5.01,138.77,138.74,5.48375192]
[1763462363799,5.01,138.77,138.75,4.81375192]
[1763462363999,5.01,138.77,138.74,5.48375192]
[1763462366491,4.3,138.77,138.74,4.81375192]
[1763462366693,4.3,138.77,138.75,5.48375192]
[1763462367199,4.3,138.77,138.72,0.67]
[1763462367403,0.71,138.76,138.74,4.81375192]
[1763462367812,4.3,138.77,138.74,4.81375192]
[1763462368016,5.01,138.77,138.74,4.81375192]
[1763462368218,5.01,138.77,138.74,5.48375192]
[1763462368422,10.49882769,138.76,138.73,4.81375192]
[1763462369001,10.49882769,138.76,138.73,5.48375192]
[1763462369520,9.78882769,138.76,138.73,5.48375192]
[1763462369828,10.49882769,138.76,138.73,5.48375192]
[1763462374517,10.49882769,138.76,138.69,4.5]
[1763462374720,14.60257961,138.76,138.72,4.81375192]
[1763462375027,9.82375192,138.75,138.7,5.48375192]
[1763462375321,5.52375192,138.74,138.7,5.48375192]
[1763462375525,4.3,138.73,138.7,5.48375192]
[1763462375817,4.3,138.73,138.69,0.2]
[1763462375818,5.01,138.73,138.69,5.01375192]
[1763462376025,5.01,138.73,138.69,5.68375192]
[1763462376210,5.01,138.73,138.7,0.67]
[1763462376730,5.01,138.73,138.69,0.2]
[1763462376731,0.71,138.72,138.69,0.2]
[1763462376932,0.71,138.72,138.69,5.68375192]
[1763462377137,0.71,138.72,138.69,0.2]
[1763462377138,32.20978769,138.71,138.69,0.2]
[1763462377339,10.49882769,138.7,138.69,0.2]
[1763462377531,14.79882769,138.71,138.69,0.2]
[1763462378334,4.3,138.71,138.7,5.48375192]
[1763462378632,0.71,138.75,138.7,5.48375192]
[1763462378633,4.3,138.73,138.7,5.48375192]
[1763462378841,4.3,138.73,138.71,0.67]
[1763462379026,4.3,138.73,138.71,5.48375192]
[1763462379341,4.3,138.73,138.71,4.81375192]
[1763462379520,4.3,138.73,138.71,5.48375192]
[1763462381031,4.3,138.73,138.71,0.67]
[1763462381233,4.3,138.73,138.71,5.48375192]
[1763462383955,4.3,138.73,138.72,5.50375192]
[1763462384159,4.3,138.75,138.72,5.50375192]
[1763462385667,5.02,138.75,138.72,5.50375192]
[1763462386141,4.3,138.75,138.72,5.50375192]
[1763462386346,5.02,138.75,138.72,5.50375192]
[1763462386650,4.3,138.75,138.72,5.50375192]
[1763462387357,5.02,138.75,138.72,5.50375192]
[1763462388856,4.3,138.75,138.72,4.81375192]
[1763462389161,0.72,138.74,138.72,4.81375192]
[1763462389362,5.02,138.75,138.72,4.81375192]
[1763462389540,5.02,138.75,138.72,5.50375192]
[1763462391048,4.3,138.75,138.73,0.69]
[1763462391248,4.3,138.75,138.72,5.50375192]
[1763462391751,5.02,138.75,138.72,5.50375192]
[1763462392456,4.3,138.75,138.73,5.50375192]
[1763462392647,4.3,138.75,138.73,4.81375192]
[1763462393757,5.02,138.75,138.73,4.81375192]
[1763462393939,5.02,138.75,138.72,5.50375192]
[1763462395651,4.3,138.75,138.72,5.50375192]
[1763462396039,5.02,138.75,138.72,5.50375192]
[1763462398363,5.02,138.75,138.72,0.69]
[1763462398552,5.02,138.75,138.72,5.50375192]
[1763462398748,5.02,138.75,138.72,3.77393495]
[1763462400743,4.3,138.75,138.73,3.77393495]
[1763462402354,4.3,138.75,138.73,0.69]
[1763462402549,4.3,138.75,138.72,3.77393495]
[1763462403687,4.3,138.75,138.73,0.69]
[1763462405197,4.3,138.75,138.72,3.08393495]
[1763462405378,0.72,138.74,138.71,3.08393495]
[1763462405741,0.72,138.74,138.71,3.77393495]
[1763462405964,0.72,138.74,138.71,0.69]
[1763462406157,0.72,138.74,138.71,3.77393495]
[1763462407478,9.78882769,138.71,138.69,0.2]
[1763462407655,7.38393495,138.71,138.69,0.2]
[1763462407854,8.10393495,138.71,138.69,0.2]
[1763462408461,3.08393495,138.7,138.69,0.2]
[1763462409054,17.17276264,138.71,138.69,0.2]
[1763462409256,17.89276264,138.71,138.69,0.2]
[1763462410379,10.50882769,138.7,138.69,0.2]
[1763462410678,13.59276264,138.7,138.69,0.2]
[1763462411665,87.71951346,138.7,138.69,0.2]
[1763462411857,16.67669759,138.7,138.68,0.17613636]
[1763462412057,18.12096,138.66,138.65,0.2]
[1763462412256,25.50489495,138.66,138.65,0.2]
[1763462412457,31.68372264,138.66,138.65,0.2]
[1763462412704,38.87923098,138.66,138.65,0.2]
[1763462412857,38.87923098,138.66,138.59,0.2]
[1763462412858,12.87276264,138.61,138.59,0.2]
[1763462413178,4.3,138.6,138.59,0.2]
[1763462413863,17.86276264,138.6,138.59,0.2]
[1763462414388,17.17276264,138.6,138.59,0.2]
[1763462414766,17.86276264,138.6,138.59,0.2]
[1763462415796,14.08882769,138.6,138.59,0.89]
[1763462416005,4.3,138.6,138.59,0.89]
[1763462417618,4.3,138.6,138.59,3.97393495]
[1763462418114,2.89613727,138.63,138.59,3.97393495]
[1763462418311,4.3,138.63,138.6,3.77393495]
[1763462418498,4.3,138.63,138.6,0.69]
[1763462418689,0.69,138.62,138.59,0.2]
[1763462418888,4.3,138.61,138.59,0.89]
[1763462419198,4.3,138.61,138.59,3.97393495]
[1763462419980,4.3,138.61,138.6,0.67]
[1763462420179,4.3,138.61,138.59,0.87]
[1763462420393,4.3,138.61,138.6,0.67]
[1763462420590,4.3,138.61,138.6,3.08393495]
[1763462420879,4.3,138.61,138.59,3.95393495]
[1763462421089,4.3,138.61,138.6,0.67]
[1763462423500,4.3,138.61,138.6,3.75393495]
[1763462424789,4.3,138.61,138.6,0.67]
[1763462426090,4.3,138.61,138.6,3.75393495]
[1763462427001,4.3,138.61,138.6,3.08393495]
[1763462427178,4.3,138.61,138.59,3.95393495]
[1763462427891,4.3,138.61,138.6,0.67]
[1763462429006,4.95,138.61,138.59,0.2]
[1763462430112,4.3,138.61,138.59,0.2]
[1763462431814,4.3,138.61,138.59,3.95393495]
[1763462432315,4.3,138.61,138.59,0.87]
[1763462432514,4.3,138.61,138.6,0.67]
[1763462432891,27.90978769,138.62,138.6,0.67]
[1763462433087,27.90978769,138.62,138.59,3.28393495]
[1763462433292,4.3,138.63,138.6,3.08393495]